fUST/lending_fUST_20250701
["ID","MTS","AMOUNT","RATE_DAILY","PERIOD"]
[368837874,1751375479142,-460.0,0.00017373,2]
[368837875,1751375479152,-460.0,0.00017375,2]
[368837877,1751375479162,-460.0,0.00017641,2]
[368837878,1751375479171,-460.0,0.00017646,2]
[368837880,1751375479182,-460.0,0.00017646,2]
[368837882,1751375479192,-317.50801794,0.00017646,2]
[368837883,1751375479202,-460.0,0.00017647,2]
[368837885,1751375479213,-151.0,0.00017658,2]
[368837886,1751375479223,-282.89367867,0.00017658,2]
[368837887,1751375479232,-151.0,0.00017685,2]
[368837888,1751375479242,-198.0,0.00017713,2]
[368837889,1751375479251,-460.0,0.0001792,2]
[368837890,1751375479261,-460.0,0.0001792,2]
[368837891,1751375479270,-460.0,0.00017921,2]
[368837892,1751375479280,-275.164182,0.00017923,2]
[368837893,1751375479290,-460.0,0.00018194,2]
[368837894,1751375479300,-460.0,0.00018194,2]
[368837895,1751375479309,-460.0,0.00018195,2]
[368837896,1751375479320,-275.164182,0.00018467,2]
[368837897,1751375479330,-460.0,0.00018468,2]
[368837898,1751375479340,-460.0,0.00018468,2]
[368837899,1751375479349,-460.0,0.00018469,2]
[368837900,1751375479359,-460.0,0.00018742,2]
[368837901,1751375479368,-460.0,0.00018742,2]
[368837902,1751375479378,-275.164182,0.00018744,2]
[368837903,1751375479388,-460.0,0.00019016,2]
[368837904,1751375479398,-460.0,0.00019016,2]
[368837905,1751375479408,-275.164182,0.00019289,2]
[368837906,1751375479419,-460.0,0.0001929,2]
[368837907,1751375479430,-460.0,0.0001929,2]
[368837908,1751375479440,-275.164182,0.00019368,2]
[368837909,1751375479451,-460.0,0.00019564,2]
[368837910,1751375479461,-460.0,0.00019564,2]
[368837911,1751375479473,-460.0,0.00019838,2]
[368837912,1751375479483,-460.0,0.00019838,2]
[368837914,1751375479492,-275.164182,0.00019916,2]
[368837915,1751375479503,-460.0,0.00020112,2]
[368837917,1751375479513,-566.24,0.00020112,2]
[368837919,1751375479522,-777.64,0.00020384,2]
[368837921,1751375479533,-460.0,0.00020386,2]
[368837923,1751375479542,-275.164182,0.0002039,2]
[368837925,1751375479552,-777.64,0.00020658,2]
[368837927,1751375479561,-460.0,0.0002066,2]
[368837929,1751375479571,-275.164182,0.00020831,2]
[368837931,1751375479580,-777.64,0.00020932,2]
[368837933,1751375479590,-460.0,0.00020934,2]
[368837935,1751375479600,-777.64,0.00021206,2]
[368837937,1751375479609,-777.64,0.0002148,2]
[368837939,1751375479619,-777.64,0.00021754,2]
[368837941,1751375479628,-777.64,0.00022028,2]
[368837943,1751375479638,-777.64,0.00022302,2]
[368837945,1751375479647,-777.64,0.00022576,2]
[368837947,1751375479657,-5318.0,0.00022859,2]
[368837949,1751375479666,-5318.0,0.00023132,2]
[368837951,1751375479676,-52493.94431272,0.00024589,10]
[368837953,1751375479686,-172.521992,0.00024589,2]
[368837955,1751375479696,-172.521992,0.00024589,2]
[368837957,1751375479705,-151.0,0.00024589,7]
[368837959,1751375479715,-600.0,0.00024598,2]
[368837961,1751375479724,-600.0,0.0002462,2]
[368837963,1751375479737,-600.0,0.00024621,2]
[368837965,1751375479746,-634.62420418,0.00024627,7]
[368837967,1751375479756,-896.06,0.00024637,4]
[368837969,1751375479766,-500.0,0.00024641,2]
[368837971,1751375479775,-200.0,0.00024657,2]
[368837973,1751375479784,-209.9143543,0.00024657,2]
[368837975,1751375479794,-380.0,0.00024658,2]
[368837977,1751375479803,-200.0,0.00024658,15]
[368837979,1751375479813,-508.75674394,0.00024658,2]
[368837981,1751375479822,-568.3498,0.00024658,7]
[368837983,1751375479832,-568.3498,0.00024658,7]
[368837985,1751375479841,-568.3498,0.00024658,7]
[368837987,1751375479851,-568.3498,0.00024658,7]
[368837989,1751375479861,-568.3498,0.00024658,7]
[368837991,1751375479873,-568.3498,0.00024658,7]
[368837994,1751375479890,-568.3498,0.00024658,7]
[368837995,1751375479901,-568.3498,0.00024658,7]
[368837997,1751375479910,-568.3498,0.00024658,7]
[368837999,1751375479919,-568.3498,0.00024658,7]
[368838001,1751375479929,-568.3498,0.00024658,7]
[368838003,1751375479940,-568.3498,0.00024658,7]
[368838005,1751375479950,-568.3498,0.00024658,7]
[368838007,1751375479960,-568.3498,0.00024658,7]
[368838009,1751375479970,-568.3498,0.00024658,7]
[368838011,1751375479980,-568.3498,0.00024658,7]
[368838013,1751375479990,-568.3498,0.00024658,7]
[368838015,1751375479999,-568.3498,0.00024658,7]
[368838017,1751375480008,-568.3498,0.00024658,7]
[368838019,1751375480018,-568.3498,0.00024658,7]
[368838021,1751375480027,-200.0,0.00024658,2]
[368838023,1751375480037,-844.26419886,0.00024658,2]
[368838025,1751375480047,-614.0,0.00024658,2]
[368838027,1751375480056,-500.0,0.00024673,2]
[368838029,1751375480066,-1152.0,0.00024679,2]
[368838031,1751375480075,-229025.53542019,0.0002468,2]
[368838033,1751375480085,-172.521992,0.0002468,2]
[368838035,1751375480094,-172.521988,0.0002468,2]
[368838037,1751375480104,-614.0,0.00024685,2]
[368838039,1751375480114,-549.76456028,0.0002469,10]
[368838041,1751375480123,-646.0,0.00024693,2]
[368838043,1751375480133,-2151.0,0.00024693,2]
[368838045,1751375480144,-406.0,0.00024693,2]
[368838047,1751375480154,-8464.31541756,0.00024693,11]
[368838049,1751375480163,-51751.2,0.000247,2]
[368838051,1751375480174,-614.0,0.00024713,2]
[368838053,1751375480185,-896.06,0.00024737,2]
[368838055,1751375480194,-614.0,0.0002474,2]
[368838057,1751375480204,-500.0,0.00024744,2]
[368838059,1751375480214,-500.0,0.00024759,2]
[368838061,1751375480224,-614.0,0.00024768,2]
[368838063,1751375480235,-12909.39711642,0.00024774,2]
[368838065,1751375480252,-1209.82254928,0.00024785,14]
[368838067,1751375480273,-614.0,0.00024795,2]
[368838069,1751375480293,-2000.0,0.000248,2]
[368838071,1751375480305,-2000.0,0.000248,2]
[368838073,1751375480316,-2000.0,0.000248,2]
[368838075,1751375480325,-274.6,0.000248,2]
[368838077,1751375480336,-614.0,0.00024822,2]
[368838079,1751375480346,-896.06,0.00024837,5]
[368838081,1751375480358,-600.0,0.00024838,2]
[368838083,1751375480368,-500.0,0.00024846,2]
[368838085,1751375480378,-614.0,0.0002485,2]
[368838087,1751375480387,-600.0,0.00024869,2]
[368838089,1751375480397,-500.0,0.0002487,2]
[368838092,1751375480407,-614.0,0.00024877,2]
[368838094,1751375480418,-317774.40452214,0.00024899,15]
[368838096,1751375480433,-714300.646984,0.000249,2]
[368838098,1751375480441,-614.0,0.00024905,2]
[368838100,1751375480451,-5753.0,0.00024921,2]
[368838102,1751375480463,-500.0,0.00024927,2]
[368838104,1751375480473,-614.0,0.00024932,2]
[368838106,1751375480482,-8464.31541756,0.00024934,12]
[368838108,1751375480492,-896.06,0.00024937,5]
[368838110,1751375480503,-600.0,0.00024948,2]
[368838112,1751375480514,-3098.15478341,0.0002495,2]
[368838113,1751375480524,-614.0,0.00024959,2]
[368838116,1751375480534,-614.0,0.00024987,2]
[368838117,1751375480543,-1650.50590019,0.0002499,30]
[368838119,1751375480553,-200.0,0.00025,7]
[368838121,1751375480562,-1000.0,0.00025,25]
[368838123,1751375480572,-161.66338967,0.00025,60]
[368838125,1751375480582,-207.17458898,0.00025,120]
[368838127,1751375480591,-3203.84440432,0.00025,7]
[368838129,1751375480601,-157.99176732,0.00025,120]
[368838131,1751375480611,-1061.53678535,0.00025,2]
[368838133,1751375480620,-1847.68753023,0.00025,2]
[368839870,1751375500040,163.86642153,0.000171,2]
[368846249,1751375585079,-179.95138146,0.0001727,2]
[368846253,1751375587195,-120.04861854,0.0001727,2]
[368846254,1751375587231,-73.55874334,0.00017271,2]
[368846264,1751375737817,-221.12254689,0.0001727,2]
[368846265,1751375737841,-300.0,0.0001727,2]
[368846266,1751375737864,-300.0,0.0001727,2]
[368846267,1751375737888,-300.0,0.0001727,2]
[368846268,1751375737910,-300.0,0.0001727,2]
[368846269,1751375737932,-300.0,0.0001727,2]
[368846270,1751375737956,-685.0,0.0001727,2]
[368846271,1751375737979,-386.44125666,0.00017271,2]
[368846272,1751375738001,-460.0,0.00017271,2]
[368846273,1751375738022,-394.03822646,0.00017271,2]
[368846274,1751375738043,-460.0,0.00017271,2]
[368846275,1751375738065,-460.0,0.00017271,2]
[368846276,1751375738086,-460.0,0.00017271,2]
[368846277,1751375738110,-460.0,0.00017271,2]
[368846278,1751375738132,-460.0,0.00017271,2]
[368846279,1751375738155,-460.0,0.00017271,2]
[368846280,1751375738180,-460.0,0.00017271,2]
[368846281,1751375738204,-460.0,0.00017271,2]
[368846282,1751375738231,-460.0,0.00017271,2]
[368846283,1751375738257,-420.67987744,0.00017271,2]
[368846284,1751375738285,-570.89,0.00017271,2]
[368846285,1751375738309,-460.0,0.00017271,2]
[368846286,1751375738332,-460.0,0.00017271,2]
[368846287,1751375738357,-460.0,0.00017271,2]
[368846288,1751375738381,-460.0,0.00017271,2]
[368846289,1751375738407,-381.82809255,0.00017271,2]
[368846290,1751375916732,36.77147266,0.00016368,2]
[368846291,1751375916756,20000.0,0.00016368,2]
[368846292,1751375916781,4863.22852734,0.00016368,2]
[368846300,1751376083425,262.5851188,0.00016319,2]
[368846304,1751376275731,4363.89535,0.00024,120]
[368846306,1751376295333,152.46548932,0.00016751,2]
[368846310,1751376347118,-195.77361624,0.00017268,2]
[368846335,1751376406691,395.620994,0.00013699,2]
[368846336,1751376425086,-167.13010445,0.00017268,2]
[368846337,1751376429824,-231.88927025,0.00017171,2]
[368846339,1751376436127,-340.54752476,0.00017171,2]
[368846340,1751376436148,-89.86989555,0.00017268,2]
[368846341,1751376436170,-48.12198567,0.00017268,2]
[368846342,1751376438087,-864.87801433,0.00017268,2]
[368846343,1751376438110,-272.32197807,0.00017268,2]
[368846344,1751376443115,-407.04473384,0.00017268,2]
[368846348,1751376525867,150.999999,0.00025216,120]
[368846349,1751376526940,164.967433,0.00016302,2]
[368846350,1751376527157,164.967433,0.00016329,2]
[368846351,1751376527370,164.967433,0.00016356,2]
[368846352,1751376527635,164.967433,0.00016383,2]
[368846372,1751376545294,-520.63328809,0.00017268,2]
[368846373,1751376545317,-300.0,0.00017268,2]
[368846374,1751376545337,-460.0,0.00017269,2]
[368846375,1751376545369,-460.0,0.00017269,2]
[368846376,1751376545395,-460.0,0.00017269,2]
[368846377,1751376545416,-460.37375489,0.00017269,2]
[368846378,1751376545439,-460.0,0.00017269,2]
[368846379,1751376545460,-460.0,0.00017269,2]
[368846380,1751376545481,-420.73,0.00017269,2]
[368846381,1751376545505,-2388.74,0.00017269,2]
[368846382,1751376545527,-460.0,0.00017269,2]
[368846383,1751376545548,-460.0,0.00017269,2]
[368846384,1751376545572,-3130.15,0.00017269,2]
[368846385,1751376545594,-460.0,0.00017269,2]
[368846386,1751376545618,-460.0,0.00017269,2]
[368846387,1751376545643,-524.13,0.00017269,2]
[368846388,1751376545669,-3650.08,0.00017269,2]
[368846389,1751376545694,-460.0,0.00017269,2]
[368846390,1751376545718,-787.8,0.00017269,2]
[368846391,1751376545740,-438.90113427,0.00017269,2]
[368846392,1751376545765,-460.0,0.00017269,2]
[368846393,1751376545788,-460.0,0.00017269,2]
[368846394,1751376545810,-460.0,0.00017269,2]
[368846395,1751376545833,-460.0,0.00017269,2]
[368846396,1751376545859,-1272.84,0.00017269,2]
[368846397,1751376545883,-460.0,0.00017269,2]
[368846398,1751376545908,-2622.27,0.00017269,2]
[368846399,1751376545932,-460.0,0.00017269,2]
[368846400,1751376545958,-4856.27,0.00017269,2]
[368846401,1751376545979,-460.0,0.00017269,2]
[368846402,1751376546002,-460.0,0.00017269,2]
[368846403,1751376546024,-460.0,0.00017269,2]
[368846404,1751376546045,-460.0,0.00017269,2]
[368846405,1751376546066,-470.84979889,0.00017269,2]
[368846406,1751376546087,-460.0,0.00017269,2]
[368846407,1751376546109,-460.0,0.00017269,2]
[368846408,1751376546132,-1670.35,0.00017269,2]
[368846409,1751376546153,-460.0,0.00017269,2]
[368846410,1751376546176,-460.0,0.00017269,2]
[368846411,1751376546199,-460.0,0.00017269,2]
[368846412,1751376546221,-460.0,0.00017269,2]
[368846413,1751376546242,-1017.86666302,0.00017269,2]
[368846414,1751376546263,-20000.0,0.0001727,2]
[368846415,1751376546285,-1472.45,0.00017271,2]
[368846416,1751376546307,-460.0,0.00017271,2]
[368846417,1751376546331,-555.22,0.00017271,2]
[368846418,1751376546353,-2053.17,0.00017271,2]
[368846419,1751376546375,-460.0,0.00017271,2]
[368846420,1751376546397,-1092.8,0.00017271,2]
[368846421,1751376546420,-526.84285017,0.00017271,2]
[368846422,1751376546444,-1111.05895177,0.00017271,2]
[368846423,1751376550125,-480.39104823,0.00017271,2]
[368846424,1751376550145,-151.0,0.00017271,2]
[368846425,1751376550166,-212.59306119,0.00017272,2]
[368846426,1751376550187,-441.98665408,0.00017272,2]
[368846427,1751376554076,-460.0,0.00017269,2]
[368846428,1751376554098,-460.0,0.00017269,2]
[368846429,1751376554120,-514.7090616,0.00017269,2]
[368846430,1751376559107,-117.3709384,0.00017269,2]
[368846431,1751376559128,-460.0,0.00017269,2]
[368846432,1751376559148,-155.0,0.00017271,2]
[368846433,1751376559169,-104.5073721,0.00017272,2]
[368846434,1751376564081,-460.0,0.00017269,2]
[368846435,1751376564102,-20.42264142,0.00017272,2]
[368846436,1751376564136,-36.40866511,0.00017272,2]
[368846437,1751376565260,151.0,0.00017272,2]
[368846438,1751376565308,263.39133489,0.00017269,2]
[368846443,1751376570099,-196.60866511,0.00017269,2]
[368846444,1751376570119,-132.99504845,0.00017272,2]
[368846495,1751376632834,-460.0,0.00017268,2]
[368846496,1751376632846,-460.0,0.00017268,2]
[368846497,1751376632855,-480.06111468,0.00017268,2]
[368846498,1751376632865,-300.0,0.00017268,2]
[368846499,1751376632877,-303.76682082,0.00017268,2]
[368846500,1751376632887,-460.0,0.00017268,2]
[368846501,1751376632896,-460.0,0.00017268,2]
[368846502,1751376632905,-601.1010107,0.00017268,2]
[368846503,1751376632915,-460.0,0.00017269,2]
[368846504,1751376632924,-2487.2,0.00017269,2]
[368846505,1751376632934,-1350.41611209,0.00017269,2]
[368846506,1751376632946,-739.51388791,0.00017269,2]
[368846507,1751376632955,-460.0,0.00017269,2]
[368846508,1751376632964,-460.0,0.00017269,2]
[368846509,1751376632975,-460.0,0.00017269,2]
[368846510,1751376632985,-1083.66,0.00017269,2]
[368846511,1751376632994,-460.0,0.00017269,2]
[368846512,1751376633003,-2625.71987258,0.00017269,2]
[368846513,1751376633038,-460.0,0.00017268,2]
[368846514,1751376633047,-374.00012742,0.00017269,2]
[368846515,1751376633057,-460.0,0.00017269,2]
[368846516,1751376633068,-38.6823088,0.00017272,2]
[368846517,1751376633077,-755.45,0.00017359,3]
[368846518,1751376633087,-460.0,0.00017366,2]
[368846519,1751376633097,-460.0,0.00017366,2]
[368846520,1751376633108,-464.05985085,0.00017366,2]
[368846521,1751376633118,-269.21543295,0.00017366,2]
[368846522,1751376633127,-345.7741022,0.00017366,2]
[368846523,1751376633138,-460.0,0.00017366,2]
[368846524,1751376633148,-460.0,0.00017366,2]
[368846525,1751376633157,-460.0,0.00017366,2]
[368846526,1751376633167,-460.0,0.00017366,2]
[368846527,1751376633176,-460.0,0.00017366,2]
[368846528,1751376633187,-460.0,0.00017366,2]
[368846529,1751376633198,-460.0,0.00017366,2]
[368846530,1751376633208,-210.613945,0.00017366,2]
[368846531,1751376633217,-460.0,0.00017366,2]
[368846532,1751376633227,-460.0,0.00017366,2]
[368846533,1751376633237,-460.0,0.00017366,2]
[368846534,1751376633246,-460.0,0.00017366,2]
[368846535,1751376633256,-460.0,0.00017366,2]
[368846536,1751376633266,-460.0,0.00017366,2]
[368846537,1751376633275,-460.0,0.00017366,2]
[368846538,1751376633284,-460.0,0.00017366,2]
[368846539,1751376633293,-200.0,0.00017366,2]
[368846540,1751376633302,-460.0,0.00017366,2]
[368846541,1751376633311,-460.0,0.00017366,2]
[368846542,1751376633320,-460.0,0.00017366,2]
[368846543,1751376633329,-460.0,0.00017366,2]
[368846544,1751376633338,-460.94008852,0.00017366,2]
[368846545,1751376633348,-460.0,0.00017366,2]
[368846546,1751376633357,-460.0,0.00017366,2]
[368846547,1751376633366,-460.0,0.00017366,2]
[368846548,1751376633376,-460.0,0.00017366,2]
[368846549,1751376633385,-500.0,0.00017366,2]
[368846551,1751376633395,-500.0,0.00017366,2]
[368846552,1751376633404,-203.42453453,0.00017366,2]
[368846553,1751376633414,-421.49353438,0.00017366,2]
[368846554,1751376633423,-460.0,0.00017366,2]
[368846555,1751376633433,-460.0,0.00017366,2]
[368846556,1751376633442,-464.58629029,0.00017366,2]
[368846557,1751376633453,-460.0,0.00017366,2]
[368846558,1751376633462,-629.01,0.00017366,2]
[368846559,1751376633472,-460.0,0.00017366,2]
[368846560,1751376633481,-361.82692084,0.00017366,2]
[368846561,1751376633491,-460.0,0.00017366,2]
[368846562,1751376633500,-460.0,0.00017366,2]
[368846563,1751376633510,-460.0,0.00017366,2]
[368846564,1751376633521,-460.0,0.00017366,2]
[368846565,1751376633531,-460.0,0.00017366,2]
[368846566,1751376633541,-460.0,0.00017366,2]
[368846567,1751376633551,-305.49120948,0.00017366,2]
[368846568,1751376633561,-460.0,0.00017366,2]
[368846569,1751376633571,-460.0,0.00017366,2]
[368846570,1751376633581,-460.0,0.00017366,2]
[368846571,1751376633591,-460.0,0.00017366,2]
[368846572,1751376633601,-322.51603026,0.00017366,2]
[368846573,1751376633610,-460.0,0.00017366,2]
[368846574,1751376633620,-507.5304883,0.00017366,2]
[368846575,1751376633629,-460.0,0.00017366,2]
[368846576,1751376633640,-460.0,0.00017366,2]
[368846577,1751376633650,-500.0,0.00017366,2]
[368846578,1751376633660,-461.05856364,0.00017366,2]
[368846579,1751376633669,-460.0,0.00017366,2]
[368846580,1751376633679,-460.0,0.00017366,2]
[368846581,1751376633689,-500.0,0.00017366,2]
[368846582,1751376633699,-500.0,0.00017366,2]
[368846583,1751376633708,-460.0,0.00017366,2]
[368846584,1751376633719,-460.0,0.00017366,2]
[368846585,1751376633729,-460.0,0.00017366,2]
[368846586,1751376633739,-460.0,0.00017366,2]
[368846587,1751376633748,-642.37,0.00017366,2]
[368846588,1751376633759,-460.0,0.00017366,2]
[368846589,1751376633769,-474.1,0.00017366,2]
[368846590,1751376633778,-474.54,0.00017366,2]
[368846591,1751376633788,-460.0,0.00017366,2]
[368846592,1751376633798,-1394.04,0.00017366,2]
[368846593,1751376633809,-460.0,0.00017366,2]
[368846594,1751376633819,-460.0,0.00017366,2]
[368846595,1751376633829,-460.0,0.00017366,2]
[368846596,1751376633839,-603.08,0.00017366,2]
[368846597,1751376633848,-1256.82,0.00017366,2]
[368846598,1751376633858,-857.59,0.00017366,2]
[368846599,1751376633867,-460.0,0.00017366,2]
[368846600,1751376633877,-460.0,0.00017366,2]
[368846601,1751376633887,-460.0,0.00017366,2]
[368846602,1751376633896,-460.0,0.00017366,2]
[368846603,1751376633906,-460.0,0.00017366,2]
[368846604,1751376633915,-460.0,0.00017366,2]
[368846605,1751376633925,-460.0,0.00017366,2]
[368846606,1751376633935,-460.0,0.00017366,2]
[368846607,1751376633945,-460.0,0.00017366,2]
[368846608,1751376633955,-437.95006106,0.00017366,2]
[368846609,1751376633965,-443.45904081,0.00017366,2]
[368846610,1751376633974,-460.0,0.00017366,2]
[368846611,1751376633984,-460.0,0.00017366,2]
[368846612,1751376633994,-540.67,0.00017366,2]
[368846613,1751376634003,-460.0,0.00017366,2]
[368846614,1751376634013,-460.0,0.00017366,2]
[368846615,1751376634022,-460.0,0.00017366,2]
[368846616,1751376634032,-460.0,0.00017366,2]
[368846617,1751376634042,-460.0,0.00017366,2]
[368846618,1751376634052,-1100.95,0.00017366,2]
[368846619,1751376634062,-460.0,0.00017366,2]
[368846620,1751376634072,-703.62,0.00017366,2]
[368846621,1751376634081,-460.0,0.00017366,2]
[368846622,1751376634091,-460.0,0.00017366,2]
[368846623,1751376634100,-513.66,0.00017366,2]
[368846624,1751376634110,-653.48,0.00017366,2]
[368846625,1751376634120,-460.0,0.00017366,2]
[368846626,1751376634130,-460.0,0.00017366,2]
[368846627,1751376634141,-460.0,0.00017366,2]
[368846628,1751376634151,-460.0,0.00017366,2]
[368846629,1751376634160,-495.49,0.00017366,2]
[368846630,1751376634170,-460.0,0.00017366,2]
[368846631,1751376634180,-460.0,0.00017366,2]
[368846632,1751376634189,-460.0,0.00017366,2]
[368846633,1751376634198,-678.27,0.00017366,2]
[368846634,1751376634207,-460.0,0.00017366,2]
[368846635,1751376634217,-460.0,0.00017366,2]
[368846636,1751376634226,-500.0,0.00017366,2]
[368846637,1751376634236,-382.30186588,0.00017366,2]
[368846638,1751376634246,-500.0,0.00017366,2]
[368846639,1751376634256,-500.0,0.00017366,2]
[368846640,1751376634265,-500.0,0.00017366,2]
[368846641,1751376634275,-500.0,0.00017366,2]
[368846642,1751376634284,-628.18878624,0.00017366,2]
[368846643,1751376634293,-500.0,0.00017366,2]
[368846644,1751376634303,-500.0,0.00017366,2]
[368846645,1751376634313,-500.0,0.00017366,2]
[368846646,1751376634322,-500.0,0.00017366,2]
[368846647,1751376634331,-500.0,0.00017366,2]
[368846648,1751376634341,-543.67403901,0.00017366,2]
[368846649,1751376634350,-500.0,0.00017366,2]
[368846650,1751376634360,-500.0,0.00017366,2]
[368846651,1751376634369,-500.0,0.00017366,2]
[368846652,1751376634379,-500.0,0.00017366,2]
[368846653,1751376634389,-460.0,0.00017367,2]
[368846654,1751376634398,-460.0,0.00017367,2]
[368846655,1751376634406,-464.63706324,0.00017367,2]
[368846656,1751376634416,-460.0,0.00017367,2]
[368846657,1751376634425,-460.0,0.00017367,2]
[368846658,1751376634434,-460.0,0.00017367,2]
[368846659,1751376634443,-460.0,0.00017367,2]
[368846660,1751376634453,-450.36907297,0.00017367,2]
[368846661,1751376634463,-460.0,0.00017367,2]
[368846662,1751376634472,-460.0,0.00017367,2]
[368846663,1751376634482,-460.0,0.00017367,2]
[368846664,1751376634491,-460.0,0.00017367,2]
[368846665,1751376634501,-460.0,0.00017367,2]
[368846666,1751376634511,-500.0,0.00017367,2]
[368846667,1751376634521,-823.93,0.00017367,2]
[368846668,1751376634530,-460.0,0.00017367,2]
[368846669,1751376634539,-460.0,0.00017367,2]
[368846670,1751376634549,-460.0,0.00017367,2]
[368846671,1751376634558,-460.0,0.00017367,2]
[368846672,1751376634568,-460.0,0.00017367,2]
[368846673,1751376634577,-460.0,0.00017367,2]
[368846674,1751376634586,-460.0,0.00017367,2]
[368846675,1751376634596,-460.66772247,0.00017367,2]
[368846676,1751376634606,-460.0,0.00017367,2]
[368846677,1751376634615,-460.0,0.00017367,2]
[368846678,1751376634625,-460.0,0.00017367,2]
[368846679,1751376634635,-460.0,0.00017367,2]
[368846680,1751376634644,-460.0,0.00017367,2]
[368846681,1751376634654,-695.91,0.00017367,2]
[368846682,1751376634663,-460.0,0.00017367,2]
[368846683,1751376634673,-460.0,0.00017367,2]
[368846684,1751376634682,-460.0,0.00017367,2]
[368846685,1751376634692,-460.0,0.00017367,2]
[368846686,1751376634702,-460.0,0.00017367,2]
[368846687,1751376634711,-460.0,0.00017367,2]
[368846688,1751376634721,-460.0,0.00017367,2]
[368846689,1751376634731,-460.0,0.00017367,2]
[368846690,1751376634741,-460.0,0.00017367,2]
[368846691,1751376634753,-500.0,0.00017367,2]
[368846692,1751376634763,-500.0,0.00017367,2]
[368846693,1751376634774,-500.0,0.00017367,2]
[368846694,1751376634785,-460.0,0.00017367,2]
[368846695,1751376634795,-460.0,0.00017367,2]
[368846696,1751376634808,-460.0,0.00017367,2]
[368846697,1751376634818,-979.38,0.00017367,2]
[368846698,1751376634828,-460.0,0.00017367,2]
[368846699,1751376634837,-460.0,0.00017367,2]
[368846700,1751376634847,-460.0,0.00017367,2]
[368846701,1751376634857,-460.0,0.00017367,2]
[368846702,1751376634867,-460.0,0.00017367,2]
[368846703,1751376634877,-460.0,0.00017367,2]
[368846704,1751376634888,-460.0,0.00017367,2]
[368846705,1751376634898,-460.0,0.00017367,2]
[368846706,1751376634907,-460.0,0.00017367,2]
[368846707,1751376634917,-460.0,0.00017367,2]
[368846708,1751376634926,-460.0,0.00017367,2]
[368846709,1751376634936,-460.0,0.00017367,2]
[368846710,1751376634947,-460.0,0.00017367,2]
[368846711,1751376634956,-460.0,0.00017367,2]
[368846712,1751376634967,-460.0,0.00017367,2]
[368846713,1751376634977,-460.0,0.00017369,2]
[368846714,1751376634986,-460.0,0.00017369,2]
[368846715,1751376634996,-460.0,0.00017369,2]
[368846716,1751376635007,-460.0,0.00017369,2]
[368846717,1751376635017,-460.0,0.00017369,2]
[368846718,1751376635028,-460.0,0.00017369,2]
[368846719,1751376635038,-460.0,0.00017369,2]
[368846720,1751376635047,-460.0,0.00017369,2]
[368846721,1751376635056,-460.0,0.00017369,2]
[368846722,1751376635066,-460.0,0.00017369,2]
[368846723,1751376635078,-460.0,0.00017369,2]
[368846724,1751376635089,-460.0,0.00017369,2]
[368846725,1751376635099,-460.0,0.00017369,2]
[368846726,1751376635110,-460.0,0.00017369,2]
[368846727,1751376635120,-460.0,0.00017369,2]
[368846728,1751376635130,-460.0,0.00017369,2]
[368846729,1751376635139,-460.0,0.00017369,2]